[Event "WYCC U16 Girls 2019"]
[Site "Mumbai"]
[Date "2019.10.07"]
[Round "7.3"]
[White "Salonika, Saina"]
[Black "Beydullayeva, Govhar"]
[Result "1/2-1/2"]
[ECO "B90"]
[WhiteElo "2051"]
[BlackElo "2289"]
[Annotator "ChessBase"]
[PlyCount "59"]
[EventDate "2019.10.02"]
[EventType "swiss"]
[EventCountry "IND"]
[SourceTitle "playchess.com"]
[Source "ChessBase"]
[SourceQuality "1"]
[TimeControl "5400+30"]

1. e4 {[%emt 0:00:00]} c5 {[%emt 0:01:14]} 2. Nf3 {[%emt 0:00:00]} d6 {[%emt 0:00:03]} 3. d4 {[%emt 0:00:00]} cxd4 {[%emt 0:00:06]} 4. Nxd4 {[%emt 0:00:00]} Nf6 {[%emt 0:00:02]} 5. Nc3 {[%emt 0:00:00]} a6 {[%emt 0:00:04]} 6. Be3 {[%emt 0:00:00]} e5 {[%emt 0:00:14]} 7. Nf3 {[%emt 0:00:06]} Qc7 {[%emt 0:00:28]} 8. a4 {[%emt 0:00:05]} Be7 {[%emt 0:00:56]} 9. Be2 {[%emt 0:00:06]} O-O {[%emt 0:00:22]} 10. O-O {[%emt 0:00:04]} Nbd7 {[%emt 0:01:11]} 11. Nd2 {[%emt 0:06:58]} Nc5 {[%emt 0:01:24]} 12. b4 {[%emt 0:11:46]} Ne6 {[%emt 0:15:14]} 13. Nc4 {[%emt 0:03:17]} Nf4 {[%emt 0:13:20]} 14. Bxf4 {[%emt 0:12:48]} exf4 {[%emt 0:00:52]} 15. Qd4 {[%emt 0:00:06]} Be6 {[%emt 0:09:14]} 16. Nb6 {[%emt 0:01:03]} Rad8 {[%emt 0:03:50]} 17. Rac1 {[%emt 0:01:44]} Rfe8 {[%emt 0:05:23]} 18. Bf3 {[%emt 0:03:47]} h6 {[%emt 0:09:21]} 19. a5 {[%emt 0:10:51]} Nh7 {[%emt 0:05:21]} 20. Ncd5 {[%emt 0:05:00]} Bxd5 {[%emt 0:00:16]} 21. Nxd5 {[%emt 0:00:13]} Qd7 {[%emt 0:01:47]} 22. h3 {[%emt 0:13:06]} Bf6 {[%emt 0:07:30]} 23. Nxf6+ {[%emt 0:04:04]} Nxf6 {[%emt 0:00:10]} 24. c4 {[%emt 0:01:19]} Qe7 {[%emt 0:08:18]} 25. Rfe1 {[%emt 0:00:59]} Nd7 {[%emt 0:01:41]} 26. Bd1 {[%emt 0:02:02]} Ne5 {[%emt 0:03:53]} 27. f3 {[%emt 0:02:03]} Rc8 {[%emt 0:00:57]} 28. Be2 {[%emt 0:00:55]} Red8 {[%emt 0:02:47]} 29. Red1 {[%emt 0:01:11]} Ng6 {[%emt 0:02:06]} 30. Qb2 1/2-1/2

[Event "WYCC U16 Girls 2019"]
[Site "Mumbai"]
[Date "2019.10.07"]
[Round "7.4"]
[White "Ciolacu, Alessia-Mihaela"]
[Black "Mehendi Sil"]
[Result "1-0"]
[ECO "A04"]
[WhiteElo "2095"]
[BlackElo "1812"]
[Annotator "NA"]
[PlyCount "104"]
[EventDate "2019.10.02"]
[EventType "swiss"]
[EventCountry "IND"]
[SourceTitle "playchess.com"]
[Source "ChessBase"]
[SourceQuality "1"]
[TimeControl "5400+30"]

1. Nf3 {[%emt 0:00:00]} e6 {[%emt 0:00:00]} 2. d4 {[%emt 0:00:00]} f5 {[%emt 0:00:17]} 3. Nc3 {[%emt 0:00:00]} Nf6 {[%emt 0:00:50]} 4. Bg5 {[%emt 0:00:12]} Be7 {[%emt 0:00:36]} 5. Bxf6 {[%emt 0:00:29]} Bxf6 {[%emt 0:00:22]} 6. e4 {[%emt 0:00:23]} fxe4 {[%emt 0:04:37]} 7. Nxe4 {[%emt 0:00:06]} O-O {[%emt 0:02:31]} 8. Bd3 {[%emt 0:02:21]} Nc6 {[%emt 0:03:49]} 9. c3 {[%emt 0:08:38]} d5 {[%emt 0:10:38]} 10. Nxf6+ {[%emt 0:22:54]} Qxf6 {[%emt 0:03:17]} 11. O-O {[%emt 0:02:31]} e5 {[%emt 0:08:12]} 12. Qb3 {[%emt 0:05:43]} exd4 {[%emt 0:22:21]} 13. Qxd5+ {[%emt 0:01:01]} Kh8 {[%emt 0:09:25]} 14. Nxd4 $16 {[%emt 0:21:38]} Nxd4 {[%emt 0:01:51]} 15. cxd4 {[%emt 0:00:58]} Rd8 {[%emt 0:10:16]} 16. Rae1 {[%emt 0:00:57]} g6 {[%emt 0:01:19]} 17. Qc5 {[%emt 0:05:06]} Be6 {[%emt 0:05:47]} 18. Bb1 {[%emt 0:07:28]} Rd5 {[%emt 0:07:26]} 19. Qxc7 {[%emt 0:01:16]} Rxd4 {[%emt 0:03:10]} 20. Qc3 {[%emt 0:01:27]} Rad8 {[%emt 0:00:34]} 21. Re4 {[%emt 0:00:19]} Bf5 {[%emt 0:00:55]} 22. Rxd4 {[%emt 0:02:23]} Rxd4 {[%emt 0:00:06]} 23. Bxf5 {[%emt 0:00:12]} gxf5 {[%emt 0:00:10]} 24. Qc8+ {[%emt 0:00:35]} Rd8 {[%emt 0:00:27]} 25. Qxb7 {[%emt 0:00:06]} Rg8 {[%emt 0:00:38]} 26. Rd1 {[%emt 0:02:36]} Qg5 {[%emt 0:01:33]} 27. Qd5 {[%emt 0:00:56]} h5 {[%emt 0:00:52]} 28. Qd4+ {[%emt 0:01:50]} Kh7 {[%emt 0:00:49]} 29. Qxa7+ {[%emt 0:00:41]} Rg7 {[%emt 0:00:07]} 30. Qa8 {[%emt 0:00:04]} Qg4 {[%emt 0:00:53]} 31. Qd5 {[%emt 0:00:24]} h4 {[%emt 0:00:40]} 32. Rd4 {[%emt 0:01:52]} Qh5 {[%emt 0:00:36]} 33. h3 {[%emt 0:00:13]} Qg5 {[%emt 0:00:17]} 34. Kh2 {[%emt 0:01:01]} Qf6 {[%emt 0:00:19]} 35. Rf4 {[%emt 0:00:36]} Rf7 {[%emt 0:00:35]} 36. b4 {[%emt 0:00:11]} Rf8 {[%emt 0:00:28]} 37. Qd4 {[%emt 0:00:46]} Qxd4 {[%emt 0:00:22]} 38. Rxd4 {[%emt 0:00:05]} Ra8 {[%emt 0:00:15]} 39. Rd2 {[%emt 0:01:39]} Kg6 {[%emt 0:00:12]} 40. b5 {[%emt 0:00:34]} Kf6 {[%emt 0:00:18]} 41. g3 {[%emt 0:08:26]} hxg3+ {[%emt 0:00:19]} 42. Kxg3 {[%emt 0:00:04]} Ra3+ {[%emt 0:00:09]} 43. f3 {[%emt 0:00:21]} Ke5 {[%emt 0:00:22]} 44. b6 {[%emt 0:02:01]} f4+ {[%emt 0:00:12]} 45. Kg4 {[%emt 0:00:00]} Ra6 {[%emt 0:00:00]} 46. Re2+ {[%emt 0:00:00]} Kd6 {[%emt 0:00:00]} 47. Kxf4 {[%emt 0:00:00]} Rxb6 {[%emt 0:00:00]} 48. h4 {[%emt 0:00:00]} Rb8 {[%emt 0:00:00]} 49. Re4 {[%emt 0:00:00]} Rf8+ {[%emt 0:00:00]} 50. Kg3 {[%emt 0:00:00]} Rg8+ {[%emt 0:00:00]} 51. Rg4 {[%emt 0:00:00]} Ra8 {[%emt 0:00:00]} 52. a4 {[%emt 0:00:00]} Kd5 1-0

[Event "WYCC U16 Girls 2019"]
[Site "Mumbai"]
[Date "2019.10.07"]
[Round "7.5"]
[White "Hajiyeva, Laman"]
[Black "Bommini Mounika Akshaya"]
[Result "1/2-1/2"]
[ECO "A61"]
[WhiteElo "2038"]
[BlackElo "2017"]
[Annotator "NA"]
[PlyCount "90"]
[EventDate "2019.10.02"]
[EventType "swiss"]
[EventCountry "IND"]
[SourceTitle "playchess.com"]
[Source "ChessBase"]
[SourceQuality "1"]
[TimeControl "5400+30"]

1. d4 {[%emt 0:00:00]} Nf6 {[%emt 0:00:03]} 2. c4 {[%emt 0:00:00]} c5 {[%emt 0:00:07]} 3. d5 {[%emt 0:00:00]} e6 {[%emt 0:00:05]} 4. Nc3 {[%emt 0:00:10]} exd5 {[%emt 0:00:16]} 5. cxd5 {[%emt 0:00:06]} d6 {[%emt 0:00:07]} 6. Nf3 {[%emt 0:00:37]} g6 {[%emt 0:00:07]} 7. Nd2 {[%emt 0:00:26]} Bg7 {[%emt 0:00:50]} 8. e4 {[%emt 0:00:41]} O-O {[%emt 0:01:35]} 9. Be2 {[%emt 0:00:09]} a6 {[%emt 0:02:08]} 10. a4 {[%emt 0:00:56]} Nbd7 {[%emt 0:01:04]} 11. O-O {[%emt 0:00:39]} Qe7 {[%emt 0:03:57] A74: Modern Benoni: Classical: 9...a6} (11... Re8 12. Re1 Rb8 13. h3 Qc7 14. Qc2 h6 15. Ra3 g5 16. Nf1 Ne5 17. f4 gxf4 18. Bxf4 Ng6 19. Bh2 c4 20. a5 b5 21. axb6 Qxb6+ {0-1 (39) Navara,D (2734)-Akopian,V (2648) Berlin 2015}) 12. Re1 {[%emt 0:12:13]} Ne8 $146 {[%emt 0:01:41]} ({Predecessor:} 12... b6 13. Nc4 Rb8 14. Bf4 {0-1 (41) Petersen,T (2058)-Berg,O (2183) Faroe Islands 2008}) 13. Nc4 {[%emt 0:08:53]} b6 {[%emt 0:05:12]} 14. Bf4 {[%emt 0:03:42]} Rb8 {[%emt 0:00:37]} 15. Qd2 {[%emt 0:04:38]} Bd4 {[%emt 0:28:33]} 16. Bg5 {[%emt 0:17:17]} Nef6 {[%emt 0:11:28]} 17. Qf4 {[%emt 0:08:34]} Bxc3 {[%emt 0:12:22]} 18. bxc3 {[%emt 0:00:16]} Qxe4 {[%emt 0:00:51]} 19. Bf3 {[%emt 0:03:36]} Qxf4 {[%emt 0:05:11]} 20. Bxf4 {[%emt 0:00:04]} b5 {[%emt 0:02:31]} 21. axb5 {[%emt 0:02:06]} axb5 {[%emt 0:00:15]} 22. Nxd6 {[%emt 0:00:39]} Rb6 {[%emt 0:01:56]} 23. Reb1 {[%emt 0:11:51]} Ba6 {[%emt 0:01:24]} 24. Ra5 {[%emt 0:08:25]} g5 {[%emt 0:01:52]} 25. Bg3 {[%emt 0:03:07]} g4 {[%emt 0:00:05]} 26. Be4 {[%emt 0:01:07]} Nxe4 {[%emt 0:04:35]} 27. Nxe4 {[%emt 0:00:05]} f5 {[%emt 0:00:34]} 28. Ng5 {[%emt 0:02:42]} f4 {[%emt 0:01:16]} 29. Bh4 {[%emt 0:00:13]} Rf5 {[%emt 0:02:32]} 30. Ne6 {[%emt 0:03:44]} Rxd5 {[%emt 0:04:16]} 31. Nxf4 $11 {[%emt 0:04:30]} Rd2 {[%emt 0:00:27]} 32. Re1 {[%emt 0:01:01]} h6 {[%emt 0:01:42]} 33. h3 {[%emt 0:00:36]} gxh3 {[%emt 0:00:29]} 34. Re8+ {[%emt 0:01:36]} Kf7 {[%emt 0:02:24]} 35. Re7+ {[%emt 0:00:01]} Kf8 {[%emt 0:01:53]} 36. gxh3 {[%emt 0:02:17]} Rd1+ {[%emt 0:01:01]} 37. Kg2 {[%emt 0:00:00]} Bb7+ {[%emt 0:00:20]} 38. f3 {[%emt 0:00:04]} Rbd6 {[%emt 0:02:28]} 39. Ra2 {[%emt 0:01:06]} R1d2+ {[%emt 0:00:28]} 40. Rxd2 {[%emt 0:00:01]} Rxd2+ {[%emt 0:00:02]} 41. Kg3 {[%emt 0:00:00]} b4 {[%emt 0:00:00]} 42. Ne6+ Kg8 43. Re8+ Kf7 44. Re7+ Kg6 45. Kg4 Ne5+ 1/2-1/2

[Event "WYCC U16 Girls 2019"]
[Site "Mumbai"]
[Date "2019.10.07"]
[Round "7.6"]
[White "Mrudul Dehankar"]
[Black "Noshin, Anjum"]
[Result "1-0"]
[ECO "C78"]
[WhiteElo "2227"]
[BlackElo "1793"]
[Annotator "ChessBase"]
[PlyCount "51"]
[EventDate "2019.10.02"]
[EventType "swiss"]
[EventCountry "IND"]
[SourceTitle "playchess.com"]
[Source "ChessBase"]
[SourceQuality "1"]
[TimeControl "5400+30"]

1. e4 {[%emt 0:00:00]} e5 {[%emt 0:00:00]} 2. Nf3 {[%emt 0:00:00]} Nc6 {[%emt 0:00:00]} 3. Bb5 {[%emt 0:00:00]} a6 {[%emt 0:00:00]} 4. Ba4 {[%emt 0:00:00]} Nf6 {[%emt 0:00:03]} 5. O-O {[%emt 0:00:01]} b5 {[%emt 0:00:09]} 6. Bb3 {[%emt 0:00:07]} Bc5 {[%emt 0:00:01]} 7. d3 {[%emt 0:00:22]} d6 {[%emt 0:00:41]} 8. a3 {[%emt 0:01:13]} h6 {[%emt 0:00:41]} 9. Nc3 {[%emt 0:03:27]} Bg4 {[%emt 0:06:22]} 10. Be3 {[%emt 0:10:29]} Nd4 {[%emt 0:07:30]} 11. Bxd4 {[%emt 0:02:09]} Bxd4 {[%emt 0:02:52]} 12. h3 {[%emt 0:01:01]} Bh5 {[%emt 0:16:59]} 13. g4 {[%emt 0:19:01]} Bxc3 {[%emt 0:09:36]} 14. bxc3 {[%emt 0:01:45]} Nxg4 {[%emt 0:19:25]} 15. hxg4 {[%emt 0:06:24]} Bxg4 {[%emt 0:00:33]} 16. Re1 {[%emt 0:03:13]} h5 {[%emt 0:04:31]} 17. Re3 {[%emt 0:02:26]} Qf6 {[%emt 0:05:52]} 18. d4 {[%emt 0:12:57]} Rh6 {[%emt 0:07:18]} 19. dxe5 {[%emt 0:06:51]} Qg6 {[%emt 0:09:16]} 20. Kf1 {[%emt 0:01:14]} Rd8 {[%emt 0:01:10]} 21. Qd5 {[%emt 0:01:48]} Rd7 {[%emt 0:06:48]} 22. Nh4 {[%emt 0:03:47]} Qg5 {[%emt 0:00:24]} 23. e6 {[%emt 0:00:48]} Qxh4 {[%emt 0:00:20]} 24. exd7+ {[%emt 0:00:01]} Kd8 {[%emt 0:00:35]} 25. e5 {[%emt 0:00:25]} dxe5 {[%emt 0:00:45]} 26. Rxe5 {[%emt 0:01:28]} 1-0

[Event "WYCC U16 Girls 2019"]
[Site "Mumbai"]
[Date "2019.10.07"]
[Round "7.7"]
[White "Poorna Sri M.K"]
[Black "Loskutova, Viktoriya"]
[Result "0-1"]
[ECO "B90"]
[WhiteElo "1787"]
[BlackElo "2149"]
[Annotator "ChessBase"]
[PlyCount "122"]
[EventDate "2019.10.02"]
[EventType "swiss"]
[EventCountry "IND"]
[SourceTitle "playchess.com"]
[Source "ChessBase"]
[SourceQuality "1"]
[TimeControl "5400+30"]

1. e4 {[%emt 0:00:00]} c5 {[%emt 0:00:00]} 2. Nf3 {[%emt 0:00:00]} d6 {[%emt 0:00:00]} 3. d4 {[%emt 0:00:02]} cxd4 {[%emt 0:00:00]} 4. Nxd4 {[%emt 0:00:08]} Nf6 {[%emt 0:00:00]} 5. Nc3 {[%emt 0:00:14]} a6 {[%emt 0:00:04]} 6. h3 {[%emt 0:00:07]} e5 {[%emt 0:00:17]} 7. Nde2 {[%emt 0:00:18]} h5 {[%emt 0:00:18]} 8. g3 {[%emt 0:00:34]} b5 {[%emt 0:00:14]} 9. Bg2 {[%emt 0:01:36]} Nbd7 {[%emt 0:01:54]} 10. Nd5 {[%emt 0:05:54]} Nxd5 {[%emt 0:03:56]} 11. Qxd5 {[%emt 0:04:04]} Nb6 {[%emt 0:01:05]} 12. Qd3 {[%emt 0:02:44]} Bb7 {[%emt 0:05:15]} 13. Nc3 {[%emt 0:04:25]} Be7 {[%emt 0:14:06]} 14. O-O {[%emt 0:01:32]} Rc8 {[%emt 0:00:43]} 15. Nd5 {[%emt 0:08:12]} Bxd5 {[%emt 0:10:00]} 16. exd5 {[%emt 0:01:46]} O-O {[%emt 0:11:03]} 17. Qd1 {[%emt 0:10:17]} h4 {[%emt 0:08:53]} 18. Qh5 {[%emt 0:13:33]} f5 {[%emt 0:09:39]} 19. Qe2 {[%emt 0:12:20]} Qc7 {[%emt 0:12:32]} 20. Be3 {[%emt 0:07:49]} Nc4 {[%emt 0:00:41]} 21. c3 {[%emt 0:03:20]} Nxe3 {[%emt 0:05:58]} 22. Qxe3 {[%emt 0:04:42]} Qc5 {[%emt 0:00:05]} 23. Qxc5 {[%emt 0:06:46]} Rxc5 {[%emt 0:00:06]} 24. a4 {[%emt 0:03:10]} hxg3 {[%emt 0:06:36]} 25. fxg3 {[%emt 0:00:15]} e4 {[%emt 0:00:11]} 26. axb5 {[%emt 0:03:01]} axb5 {[%emt 0:00:45]} 27. Rfd1 {[%emt 0:01:13]} Rc7 {[%emt 0:04:56]} 28. Bf1 {[%emt 0:01:41]} Rb8 {[%emt 0:00:22]} 29. Ra5 {[%emt 0:01:58]} b4 {[%emt 0:01:26]} 30. c4 {[%emt 0:01:26]} Bf6 {[%emt 0:00:15]} 31. b3 {[%emt 0:00:18]} Kf7 {[%emt 0:00:39]} 32. Ra6 {[%emt 0:01:15]} Be5 {[%emt 0:00:08]} 33. Kf2 {[%emt 0:00:07]} g5 {[%emt 0:00:40]} 34. Bg2 Re7 {[%emt 0:02:18]} 35. Rf1 {[%emt 0:02:04]} Kg7 {[%emt 0:01:28]} 36. Re1 {[%emt 0:00:28]} e3+ {[%emt 0:00:45]} 37. Kf3 {[%emt 0:00:30]} f4 {[%emt 0:00:05]} 38. g4 {[%emt 0:00:30]} Rbb7 {[%emt 0:00:35]} 39. Re2 {[%emt 0:00:28]} Red7 {[%emt 0:00:22]} 40. Rea2 {[%emt 0:00:20]} Bd4 {[%emt 0:00:26]} 41. Ra8 {[%emt 0:00:00]} Rf7 {[%emt 0:00:00]} 42. Bf1 {[%emt 0:00:00]} Bc5 {[%emt 0:00:00]} 43. Be2 {[%emt 0:00:00]} Kf6 {[%emt 0:00:00]} 44. Rh8 {[%emt 0:00:00]} Rh7 {[%emt 0:00:00]} 45. Rxh7 {[%emt 0:00:00]} Rxh7 {[%emt 0:00:00]} 46. Bf1 {[%emt 0:02:26]} Rh8 {[%emt 0:00:00]} 47. Bg2 {[%emt 0:00:38]} Ke5 {[%emt 0:00:00]} 48. Bf1 {[%emt 0:01:09]} Kd4 {[%emt 0:00:00]} 49. Rc2 {[%emt 0:00:37]} Rh7 {[%emt 0:00:00]} 50. Rc1 {[%emt 0:00:10]} Rh8 {[%emt 0:00:14]} 51. Rc2 {[%emt 0:00:16]} Ra8 {[%emt 0:01:48]} 52. Be2 {[%emt 0:00:24]} Ke5 {[%emt 0:00:40]} 53. Rb2 {[%emt 0:00:25]} Ra1 {[%emt 0:00:20]} 54. Kg2 {[%emt 0:01:05]} Kd4 {[%emt 0:00:31]} 55. Rc2 {[%emt 0:00:15]} Ke4 {[%emt 0:00:50]} 56. Rb2 {[%emt 0:00:53]} Re1 {[%emt 0:00:43]} 57. Bf3+ {[%emt 0:00:33]} Kd3 {[%emt 0:00:22]} 58. Ra2 {[%emt 0:00:26]} e2 {[%emt 0:00:12]} 59. Bxe2+ {[%emt 0:00:30]} Rxe2+ {[%emt 0:00:05]} 60. Rxe2 {[%emt 0:00:06]} Kxe2 {[%emt 0:00:04]} 61. h4 {[%emt 0:00:09]} f3+ {[%emt 0:00:04]} 0-1

[Event "WYCC U16 Girls 2019"]
[Site "Mumbai"]
[Date "2019.10.07"]
[Round "7.8"]
[White "Juhasz, Judit"]
[Black "Achaya Vijayan"]
[Result "1/2-1/2"]
[ECO "B33"]
[WhiteElo "2004"]
[BlackElo "1585"]
[Annotator "NA"]
[PlyCount "87"]
[EventDate "2019.10.02"]
[EventType "swiss"]
[EventCountry "IND"]
[SourceTitle "playchess.com"]
[Source "ChessBase"]
[SourceQuality "1"]
[TimeControl "5400+30"]

1. e4 c5 2. Nf3 Nc6 3. d4 cxd4 4. Nxd4 Nf6 5. Nc3 e5 6. Ndb5 d6 7. Bg5 a6 8. Na3 b5 9. Nd5 Be7 10. Bxf6 Bxf6 11. c3 O-O 12. Nc2 Bg5 13. a4 bxa4 14. Rxa4 a5 15. Bc4 Rb8 16. b3 Kh8 17. O-O g6 18. Nce3 Bxe3 19. Nxe3 Ne7 20. Nd5 Nxd5 21. Bxd5 Be6 22. Qd2 Qb6 23. Rb1 Qb5 24. Qd1 Bxd5 25. exd5 Rfc8 26. c4 Qb6 27. g3 Kg7 28. Qc2 Qc5 29. Qa2 Ra8 30. Ra1 Rcb8 31. Qb2 Qb6 32. b4 Qc7 33. Qa2 Rb7 34. Rxa5 Rc8 35. Rb5 Rxb5 36. cxb5 Qb6 37. Qa6 Rb8 38. Qxb6 Rxb6 39. Ra5 e4 40. f4 exf3 41. Kf2 Kf6 42. Kxf3 Ke5 43. Ra7 f5 44. Rxh7 {Ke4+ Kxe4} 1/2-1/2

[Event "WYCC U16 Girls 2019"]
[Site "Mumbai"]
[Date "2019.10.07"]
[Round "7.9"]
[White "Al Maamari, Wafia Darwish"]
[Black "Demchenko, Svitlana"]
[Result "0-1"]
[ECO "B47"]
[WhiteElo "1673"]
[BlackElo "1953"]
[Annotator "NA"]
[PlyCount "60"]
[EventDate "2019.10.02"]
[EventType "swiss"]
[EventCountry "IND"]
[SourceTitle "playchess.com"]
[Source "ChessBase"]
[SourceQuality "1"]
[TimeControl "5400+30"]

1. e4 {[%emt 0:00:00]} c5 {[%emt 0:00:00]} 2. Nf3 {[%emt 0:00:00]} e6 {[%emt 0:00:00]} 3. d4 {[%emt 0:00:05]} cxd4 {[%emt 0:00:00]} 4. Nxd4 {[%emt 0:00:05]} Nc6 {[%emt 0:00:03]} 5. Nc3 {[%emt 0:00:08]} Qc7 {[%emt 0:00:09]} 6. Ndb5 {[%emt 0:00:50]} Qb8 {[%emt 0:00:27]} 7. f4 {[%emt 0:00:15]} a6 {[%emt 0:00:37]} 8. Nd4 {[%emt 0:00:06]} b5 {[%emt 0:02:12]} 9. Be3 {[%emt 0:06:08]} Bb7 {[%emt 0:01:19]} 10. Nxc6 {[%emt 0:12:23]} Bxc6 {[%emt 0:01:20]} 11. Bd3 {[%emt 0:02:51]} Qb7 {[%emt 0:06:24]} 12. Qf3 {[%emt 0:07:27]} b4 {[%emt 0:12:37]} 13. Ne2 {[%emt 0:02:40]} Nf6 {[%emt 0:01:10]} 14. Ng3 {[%emt 0:01:09]} d5 $17 {[%emt 0:31:41]} 15. Qf2 {[%emt 0:21:13]} dxe4 {[%emt 0:05:36]} 16. Be2 {[%emt 0:00:36]} Be7 {[%emt 0:00:20]} 17. O-O {[%emt 0:00:47]} O-O {[%emt 0:04:32]} 18. Bd4 {[%emt 0:06:16]} Rfd8 {[%emt 0:05:26]} 19. f5 {[%emt 0:03:19]} Bd5 {[%emt 0:00:40]} 20. Qe3 {[%emt 0:06:27]} e5 {[%emt 0:03:25]} 21. Bxe5 {[%emt 0:01:04]} Rac8 {[%emt 0:00:05]} 22. Nh5 {[%emt 0:08:28]} Nxh5 {[%emt 0:02:31]} 23. Bxh5 {[%emt 0:00:02]} Bc5 {[%emt 0:00:18]} 24. Bd4 {[%emt 0:00:30]} Bxd4 {[%emt 0:00:05]} 25. Qxd4 {[%emt 0:00:06]} Bc4 {[%emt 0:00:09]} 26. Qf2 {[%emt 0:01:18]} Bxf1 {[%emt 0:00:39]} 27. Rxf1 {[%emt 0:00:02]} f6 {[%emt 0:02:18]} 28. g4 {[%emt 0:01:34]} Qc6 {[%emt 0:01:55]} 29. Rc1 {[%emt 0:02:43]} Qc5 {[%emt 0:00:24]} 30. h4 {[%emt 0:00:35]} Rd2 {[%emt 0:01:11]} 0-1

[Event "WYCC U16 Girls 2019"]
[Site "Mumbai"]
[Date "2019.10.07"]
[Round "7.10"]
[White "Skaslien, Ingrid"]
[Black "Srdanovic, Jovana"]
[Result "0-1"]
[ECO "D31"]
[WhiteElo "1875"]
[BlackElo "2100"]
[Annotator "ChessBase"]
[PlyCount "70"]
[EventDate "2019.10.02"]
[EventType "swiss"]
[EventCountry "IND"]
[SourceTitle "playchess.com"]
[Source "ChessBase"]
[SourceQuality "1"]
[TimeControl "5400+30"]

1. d4 d5 2. c4 e6 3. Nc3 c6 4. e3 Nf6 5. cxd5 exd5 6. Bd3 Bd6 7. Bd2 O-O 8. Nge2 Re8 9. Qc2 Nbd7 10. O-O Nf8 11. f3 Ng6 12. h3 Bc7 13. e4 Bb6 14. Be3 dxe4 15. fxe4 Ne5 16. Rad1 Nxd3 17. Qxd3 h6 18. Ng3 Qe7 19. Rf3 Be6 20. b3 Rad8 21. Na4 Bc7 22. Nc5 Bc8 23. Qc4 b6 24. Nd3 Bxg3 25. Rxg3 Nxe4 26. Rf3 Nd6 27. Qc1 Nf5 28. Ne5 Rd6 29. Bf2 c5 30. Nc4 Rdd8 31. dxc5 bxc5 32. Rfd3 Rxd3 33. Rxd3 Qe4 34. Rd1 Bb7 35. Ne3 Nxe3 0-1

[Event "WYCC U16 Girls 2019"]
[Site "Mumbai"]
[Date "2019.10.07"]
[Round "7.11"]
[White "Nasybullina, Dayana"]
[Black "Zhang, Xiao"]
[Result "0-1"]
[ECO "B18"]
[WhiteElo "1858"]
[BlackElo "2053"]
[Annotator "NA"]
[PlyCount "62"]
[EventDate "2019.10.02"]
[EventType "swiss"]
[EventCountry "IND"]
[SourceTitle "playchess.com"]
[Source "ChessBase"]
[SourceQuality "1"]
[TimeControl "5400+30"]

1. e4 c6 2. d4 d5 3. Nd2 dxe4 4. Nxe4 Bf5 5. Ng3 Bg6 6. Nh3 Nd7 7. Bc4 Ngf6 8. Nf4 Nb6 9. Bb3 e6 10. O-O Qc7 11. Qf3 O-O-O 12. Nxg6 hxg6 13. Bf4 Bd6 14. Bxd6 Qxd6 15. c3 Rh4 16. h3 g5 17. Rfe1 g4 18. hxg4 Rdh8 19. Kf1 Rxg4 20. Re5 Rxg3 21. Qxg3 Rh1+ 22. Ke2 Rxa1 23. Qxg7 Nbd7 24. Re3 Qf8 25. Qg5 Rb1 26. f4 Rxb2+ 27. Kd3 c5 28. f5 cxd4 29. cxd4 Qb4 30. Rh3 Qe1 31. fxe6 Qe2+ 0-1

[Event "WYCC U16 Girls 2019"]
[Site "Mumbai"]
[Date "2019.10.07"]
[Round "7.12"]
[White "Tomcikova, Dominika"]
[Black "Jain Nityata"]
[Result "1/2-1/2"]
[ECO "A05"]
[WhiteElo "1845"]
[BlackElo "2029"]
[Annotator "NA"]
[PlyCount "61"]
[EventDate "2019.10.02"]
[EventType "swiss"]
[EventCountry "IND"]
[SourceTitle "playchess.com"]
[Source "ChessBase"]
[SourceQuality "1"]
[TimeControl "5400+30"]

1. Nf3 {[%emt 0:00:00]} Nf6 {[%emt 0:00:00]} 2. g3 {[%emt 0:00:00]} g6 {[%emt 0:00:00]} 3. Bg2 {[%emt 0:00:00]} Bg7 {[%emt 0:00:00]} 4. O-O {[%emt 0:00:01]} O-O {[%emt 0:00:03]} 5. d3 {[%emt 0:00:11]} d5 {[%emt 0:00:18]} 6. Nbd2 {[%emt 0:00:10]} c5 {[%emt 0:00:40]} 7. e4 {[%emt 0:00:24]} dxe4 {[%emt 0:01:00]} 8. dxe4 {[%emt 0:00:18]} Nc6 9. Qe2 {[%emt 0:01:27]} Qb6 {[%emt 0:06:56]} 10. c3 {[%emt 0:05:52]} Rd8 {[%emt 0:02:25]} 11. Nc4 {[%emt 0:07:42]} Qa6 {[%emt 0:01:30]} 12. Re1 {[%emt 0:03:42]} Be6 {[%emt 0:03:30]} 13. Bf1 {[%emt 0:06:38]} h6 {[%emt 0:19:00]} 14. Ncd2 {[%emt 0:10:52]} Qxe2 {[%emt 0:02:04]} 15. Bxe2 $11 {[%emt 0:00:08]} Ng4 {[%emt 0:24:47]} 16. Nh4 {[%emt 0:15:00]} Nge5 {[%emt 0:07:14]} 17. f4 {[%emt 0:13:47]} Nd3 {[%emt 0:00:51]} 18. Bxd3 {[%emt 0:01:14]} Rxd3 {[%emt 0:00:08]} 19. f5 {[%emt 0:01:18]} gxf5 {[%emt 0:02:55]} 20. exf5 {[%emt 0:00:10]} Bd5 {[%emt 0:02:30]} 21. Ng2 {[%emt 0:04:41]} Bxg2 {[%emt 0:14:15]} 22. Kxg2 {[%emt 0:00:13]} Rad8 {[%emt 0:00:22]} 23. Ne4 {[%emt 0:02:51]} R8d5 {[%emt 0:03:55]} 24. Nf2 {[%emt 0:00:42]} Rd2 {[%emt 0:03:55]} 25. Bxd2 {[%emt 0:01:26]} Rxd2 {[%emt 0:00:06]} 26. Rab1 {[%emt 0:01:44]} Ne5 {[%emt 0:00:19]} 27. Red1 {[%emt 0:00:42]} Rc2 {[%emt 0:00:30]} 28. Rdc1 {[%emt 0:05:03]} Rd2 {[%emt 0:00:53]} 29. Rd1 {[%emt 0:00:09]} Rc2 {[%emt 0:01:11]} 30. Rdc1 {[%emt 0:00:06]} Rd2 {[%emt 0:02:02]} 31. Rd1 {[%emt 0:00:09]} 1/2-1/2